Cogmind - Beta 16 @@@ ROGUE MODE // 2025.10.25 @ 11:51:48 Player: Bt-7274 Result: Destroyed by DAS Turret with DAS Cannon Performance ------------- Evolutions (0) 0 Regions Visited (3) 600 Robots Destroyed (20) 100 Value Destroyed (624) 624 Prototype IDs (3) 60 Alien Tech Used (0) 0 Bonus (300) 300 TOTAL SCORE: 1684 Bonus ------- Aligned with FarCom 300 Cogmind --------- Core Integrity 0/250 Matter 265/300 Energy 62/100 System Corruption 4% Temperature Cool (0) Movement Core (50) Location -10/Exiles Parts ------- > --- POWER (1) -------- (None) > --- PROPULSION (2) --- (None) > --- UTILITY (2) ------ (None) > --- WEAPON (2) ------- (None) > --- INVENTORY (5) ---- Ion Engine Wheel Structural Scanner Seismic Detector Supersonic Drone Bay (1/1) Peak State ------------ > --- POWER ------------ Light Nuclear Core > --- PROPULSION ------- Aluminum Leg Aluminum Leg > --- UTILITY ---------- Small Storage Unit Trap Reconfigurator > --- WEAPON ----------- Small Laser Small Laser > --- INVENTORY -------- Ion Engine Wheel Structural Scanner Experimental Sensor Array Seismic Detector Small Laser Mining Laser [Rating: 18] Favorites ----------- Power Light Nuclear Core Engine Light Ion Engine Power Core Light Nuclear Core Propulsion Aluminum Leg Leg Aluminum Leg Utility Small Storage Unit Device Seismic Detector Storage Small Storage Unit Weapon Small Laser Energy Gun Small Laser Ballistic Gun Assault Rifle Special Weapon Mining Laser Build | -11 -10 -10 -10 ------- Run | Yrd Mat Min Exi Slots Evolved . | . . . . Power . | . . . . Propulsion . | . . . . Utility . | . . . . Weapon . | . . . . Parts Attached 22 | 7 1 10 4 Power 2 | 1 . 1 . Engine 1 | 1 . . . Core 1 | . . 1 . Reactor . | . . . . Propulsion 7 | 2 . 5 . Treads . | . . . . Leg 7 | 2 . 5 . Wheel . | . . . . Hover . | . . . . Flight . | . . . . Utility 7 | 2 1 1 3 Device 6 | 1 1 1 3 Storage 1 | 1 . . . Processor . | . . . . Hackware . | . . . . Protection . | . . . . Artifact . | . . . . Weapon 6 | 2 . 3 1 Energy Gun 4 | 1 . 3 . Energy Cannon . | . . . . Ballistic Gun 1 | 1 . . . Ballistic Cannon . | . . . . Launcher . | . . . . Special Weapon 1 | . . . 1 Impact Weapon . | . . . . Slashing Weapon . | . . . . Piercing Weapon . | . . . . Special Melee Weapon . | . . . . Unidentified Prototypes 3 | . . . 3 Parts Lost 8 | . . 3 5 Power 1 | . . . 1 Propulsion 2 | . . 1 1 Utility 1 | . . . 1 Weapon 4 | . . 2 2 Highest Loss Streak 5 | . . 2 5 To Critical Strikes . | . . . . Average Backups 7 | 1 4 7 7 Power 1 | . 1 1 1 Propulsion 2 | . 1 2 1 Utility 2 | . 1 2 3 Weapon . | . . . 2 Tool/Special . | . . . . Unused Backups 4 | . . 1 3 Power 2 | . . 1 1 Propulsion 1 | . . . 1 Utility 1 | . . . 1 Weapon . | . . . . Tool/Special . | . . . . Average Slot Usage (%) 99 | . 100 99 99 Engine 1 | . 14 . . Core 12 | . . 13 14 Leg 28 | . 28 28 28 Device 14 | . 14 14 14 Storage 14 | . 14 14 14 Energy Gun 19 | . 14 17 27 Ballistic Gun 8 | . 14 10 . Peak Build Rating 18 | 9 9 11 18 Average Rating 9 | 6 8 9 11 On Entrance 6 | . 9 7 10 Avg Prop Armor Cover (%) . | . . . . Naked Turns . | . . . . Heaviest Build 15 | 13 13 15 13 Greatest Support 20 | 20 20 20 20 Greatest Overweight (x) . | . . . . Average Overweight (x) . | . . . . Largest Inventory Capacity 8 | 8 8 8 8 Average Capacity 7 | 7 8 8 8 Most Carried 8 | 3 6 8 8 Average Carried 7 | 1 4 7 7 Final Capacity 8 | 8 8 8 5 Final Carried 8 | 3 6 8 5 Class Distribution -------------------- 52% | Scavenger-Mutant 47% | Mutant Dominant Class ---------------- Mutant | -10/Materials Scavenger-Mutant | -10/Mines Scavenger-Mutant | -10/Exiles Resources | -11 -10 -10 -10 ----------- Run | Yrd Mat Min Exi Matter Collected 622 | 289 12 321 . Remotely . | . . . . Salvage Created 894 | 65 91 738 . Parts 40 | 8 4 28 . Haulers Intercepted . | . . . . Recyclers Shooed 1 | 1 . . . Parts Field Recycled . | . . . . Retrieved Matter . | . . . . Parts Self-Destructed . | . . . . Prevented . | . . . . Parts Restored . | . . . . Kills | -11 -10 -10 -10 ------- Run | Yrd Mat Min Exi Combat Hostiles Destroyed 19 | . 2 17 . Guns 19 | . 2 17 . Classes Destroyed 4 | 2 1 1 . Tunneler 2 | 1 . 1 . Recycler 1 | 1 . . . Grunt 17 | . 2 15 . Assembled 2 | . . 2 . Best Kill Streak 5 | 1 2 5 . Combat Bots Only 5 | . 2 5 . Max Kills in Single Turn 1 | 1 1 1 . Gunslinging . | . . . . Exploded . | . . . . Melee . | . . . . Uniques/NPCs Destroyed . | . . . . Combat | -11 -10 -10 -10 -------- Run | Yrd Mat Min Exi Hostile Shots Fired 114 | . 4 80 30 Missed 33 | . 1 22 10 Hits 81 | . 3 58 20 Melee 4 | . . 2 2 Projectile 77 | . 3 56 18 Critical Strikes 1 | . . . 1 Part Disruptions 1 | . . . 1 Damage Taken 1081 | . 34 688 359 Core 259 | . . 124 135 Absorbed by Shields . | . . . . Core Remaining (%) 100 | 100 . . . Volleys Fired 80 | 7 4 65 4 Largest 2 | 2 2 2 2 Hottest 100 | 60 60 80 100 Shots Fired 149 | 14 8 120 7 Gun 148 | 14 8 120 6 Cannon . | . . . . Launcher . | . . . . Special 1 | . . . 1 Kinetic 70 | 7 4 59 . Thermal 37 | . . 30 7 Explosive . | . . . . Electromagnetic 42 | 7 4 31 . Robot Hit Streak 14 | 2 4 14 . Robot Miss Streak 4 | 4 2 3 . Penetration Max . | . . . . Secondary Targets 1 | . . 1 . Max Gunslinging Chain 1 | . . 1 . Shots Hit Robots 95 | 6 4 85 . Core Hits 40 | 2 2 36 . Critical Kills . | . . . . Critical Parts Destroyed . | . . . . Critical Strikes 2 | . . 2 . Corrupt 2 | . . 2 . Melee Attacks . | . . . . Impact . | . . . . Slashing . | . . . . Piercing . | . . . . Sneak Attacks . | . . . . Combat Hostiles . | . . . . Follow-up Attacks . | . . . . Damage Inflicted 1212 | 97 58 1057 . Guns 1206 | 91 58 1057 . Cannons . | . . . . Explosions . | . . . . Melee . | . . . . Ramming 6 | 6 . . . Kinetic 554 | 49 13 492 . Thermal 217 | . . 217 . Explosive . | . . . . Electromagnetic 435 | 42 45 348 . Impact . | . . . . Slashing . | . . . . Piercing . | . . . . Highest Corruption 4 | . 1 1 4 Average Corruption 1 | . 1 1 1 Corruption Purged . | . . . . Corruption Blocked . | . . . . Effects 10 | . . 10 . Matter Fused 3 | . . 3 . Heat Flow Errors 2 | . . 2 . Data Loss (minor) 4 | . . 4 . Alerts 1 | . . 1 . Overload Shots . | . . . . Overflow Damage . | . . . . Projectiles . | . . . . Explosions . | . . . . Melee . | . . . . Knockbacks . | . . . . Impact . | . . . . Kinetic . | . . . . Secondary . | . . . . Self-Inflicted Damage . | . . . . Shots . | . . . . Rammed . | . . . . Targets Rammed 1 | 1 . . . Kicked 1 | 1 . . . Crushed . | . . . . Highest Temperature 274 | . 12 274 72 Average Temperature 48 | . 8 50 42 Received Heat Transfer 423 | . 18 365 40 Siege Activations . | . . . . Martial Activations . | . . . . Shielding Activations . | . . . . Robots Disrupted . | . . . . Combat Hostiles . | . . . . Robots Corrupted . | . . . . Combat Hostiles . | . . . . Parts Fried 1 | . . 1 . Impact Corruptions . | . . . . Robots Melted . | . . . . Combat Hostiles . | . . . . Parts Melted . | . . . . Heat Transferred 500 | . . 500 . Parts Sabotaged . | . . . . Parts Stolen . | . . . . Parts Stripped . | . . . . Power Chain Reactions . | . . . . Alert | -11 -10 -10 -10 ------- Run | Yrd Mat Min Exi Maximum Alert Level . | . . . . Low Security (%) 100 | 100 100 100 . Level 1 . | . . . . Level 2 . | . . . . Level 3 . | . . . . Level 4 . | . . . . Level 5 . | . . . . High Security . | . . . . Max Security . | . . . . Peak Influence 135 | 5 40 135 . Initial . | . . . . Average 30 | . 11 37 . Influence Increases 385 | 10 50 325 . Destroy 0b10 Robot/C 340 | . 40 300 . Destroy 0b10 Robot/NC 15 | 10 . 5 . Destroy Leader 30 | . 10 20 . Influence Decreases 385 | 10 50 278 47 Entered New Map 47 | . . . 47 Time Decay 308 | 10 50 248 . Lost Part 30 | . . 30 . Squads Dispatched 2 | . 2 . . Investigation . | . . . . Extermination . | . . . . Reinforcement 2 | . 2 . . Assault . | . . . . Garrison . | . . . . Intercept . | . . . . Searches Triggered . | . . . . Construction Impeded . | . . . . Haulers Reinforced . | . . . . Active Scanning Responses . | . . . . Cargo Convoy Interrupts . | . . . . Stealth | -11 -10 -10 -10 --------- Run | Yrd Mat Min Exi Distress Signals . | . . . . Communications Jammed . | . . . . Distress Signals . | . . . . Times Spotted 35 | . 5 16 14 Peak Tracking Total 19 | . 2 3 19 Tactical Retreats 1 | . . . 1 Traps | -11 -10 -10 -10 ------- Run | Yrd Mat Min Exi Traps Triggered 1 | . 1 . . Indirectly . | . . . . Trap Hack Attempts . | . . . . Triggered . | . . . . Disarmed . | . . . . Reprogrammed . | . . . . Reused . | . . . . Traps Extracted . | . . . . Installed . | . . . . Triggered . | . . . . Machines | -11 -10 -10 -10 ---------- Run | Yrd Mat Min Exi Machines Disabled 1 | . . . 1 Max in Single Turn 1 | . . . 1 Machines Repaired . | . . . . Machines Dismantled . | . . . . Machines Sabotaged . | . . . . Overloaded Fab Kills . | . . . . Hacking | -11 -10 -10 -10 --------- Run | Yrd Mat Min Exi Machines Accessed . | . . . . Terminals . | . . . . Fabricators . | . . . . Repair Stations . | . . . . Recycling Units . | . . . . Scanalyzers . | . . . . Garrison Access . | . . . . Total Hacks . | . . . . Successful . | . . . . Failed . | . . . . Catastrophic . | . . . . Database Lockouts . | . . . . Manual 1 | . . . 1 Terminals . | . . . . Fabricators . | . . . . Repair Stations . | . . . . Recycling Units . | . . . . Scanalyzers . | . . . . Garrison Access . | . . . . Terminal Hacks . | . . . . Fabricator Hacks . | . . . . Repair Station Hacks . | . . . . Recycling Unit Hacks . | . . . . Scanalyzer . | . . . . Garrison Access Hacks . | . . . . Unauthorized Hacks . | . . . . Terminals . | . . . . Fabricators . | . . . . Repair Stations . | . . . . Recycling Units . | . . . . Scanalyzers . | . . . . Garrison Access . | . . . . Data Cores Recovered . | . . . . Used . | . . . . Hacking Detections . | . . . . Full Trace Events . | . . . . Feedback Events . | . . . . Feedback Blocked . | . . . . Robot Schematics Acquired . | . . . . Robots Built . | . . . . Authchips . | . . . . Time . | . . . . Total Robot Build Rating . | . . . . Part Schematics Acquired . | . . . . Parts Built . | . . . . Authchips . | . . . . Time . | . . . . Total Part Build Rating . | . . . . Part Studies Acquired . | . . . . Parts Repaired . | . . . . Time . | . . . . Parts Recycled . | . . . . Recycled Matter . | . . . . Retrieved Matter . | . . . . Retrieved Components . | . . . . Parts Scanalyzed . | . . . . Part Schematics Acquired . | . . . . Parts Damaged . | . . . . Bothacking | -11 -10 -10 -10 ------------ Run | Yrd Mat Min Exi Used RIF Installer . | . . . . Robots Hacked . | . . . . Non-combat . | . . . . Combat . | . . . . Robot Hacks Applied . | . . . . Relay Couplers Released . | . . . . Fabnet Peak Effective % . | . . . . Robots Rewired . | . . . . Allies Hacked . | . . . . Hacks Repelled . | . . . . Allies | -11 -10 -10 -10 -------- Run | Yrd Mat Min Exi Total Allies . | . . . . Largest Group . | . . . . Highest-Rated Group . | . . . . Highest-Rated Ally . | . . . . Total Orders 1 | . . . 1 RETURN 1 | . . . 1 Ally Attacks . | . . . . Total Damage . | . . . . Kills . | . . . . Allies Corrupted . | . . . . Allies Melted . | . . . . Intel | -11 -10 -10 -10 ------- Run | Yrd Mat Min Exi Active Infowar (turns) 1857 | 52 183 1215 407 Sensors 5 | . . . 5 Terrain 171 | 52 110 9 . Structural 285 | . 73 212 . Seismic 1396 | . . 994 402 Robot Analysis Total . | . . . . Derelict Logs Recovered 1 | . . 1 . Drone Launches 1 | . . . 1 Drone Recoveries 1 | . . . 1 Exploration | -11 -10 -10 -10 ------------- Run | Yrd Mat Min Exi Turns Passed 1958 | 141 183 1215 419 Spaces Moved 926 | 92 139 370 325 Core 7 | 6 . . 1 Treads . | . . . . Legs 919 | 86 139 370 324 Wheels . | . . . . Hover . | . . . . Flight . | . . . . Fastest Speed 50 | 50 120 120 50 Average Speed 119 | 115 120 120 119 Slowest Speed 120 | 120 120 120 120 Overloaded Moves . | . . . . Propulsion Burnouts . | . . . . Robots Hopped . | . . . . Potential Cave-ins . | . . . . Cave-ins Triggered . | . . . . Exploration Rate (%) 34 | 4 30 27 76 Regions Visited 3 Branch Regions 2 Pre-discovered Areas . | . . . . Known Exits Taken . | . . . . Unknown Exits Taken 3 | 1 1 1 . Scrap Searched 1 | . . 1 . Spaces Dug . | . . . . Terrain Destroyed . | . . . . Melee . | . . . . Projectile . | . . . . AOE . | . . . . Terrain Rammed . | . . . . Walls Destroyed . | . . . . Machines Disabled . | . . . . Actions | -11 -10 -10 -10 --------- Run | Yrd Mat Min Exi Total 1622 | 109 146 1020 347 Wait 564 | . . 562 2 Move 923 | 91 138 369 325 Hop . | . . . . Pick Up 12 | 3 3 4 2 Fast Attach 10 | 7 . 2 1 Attach 1 | . . 1 . Detach . | . . . . Swap 16 | . 1 10 5 Drop 14 | . . 6 8 Fire 80 | 7 4 65 4 Melee . | . . . . Ram . | . . . . Kick 1 | 1 . . . Crush . | . . . . Escape Stasis . | . . . . Rewire 1 | . . 1 . Trap . | . . . . Miscellaneous . | . . . . Route ------- -11/Scrapyard -10/Materials -10/Mines (discovered 2 exits: *Exi / [*Sub]) -10/Exiles History --------- Turn | Location | Event 2 | -11/Scrapyard | Discovered new exit (range 16) 142 | -11/Scrapyard | Entered Materials 284 | -10/Materials | Discovered new exit (range 14) 311 | -10/Materials | Build established: Mutant 325 | -10/Materials | Entered Mines 325 | -10/Mines | Discovered new exit (range 7) 531 | -10/Mines | Excavation squad dispatched 531 | -10/Mines | A large section of the Mines collapsed 781 | -10/Mines | Excavation squad dispatched 1031 | -10/Mines | Excavation squad dispatched 1230 | -10/Mines | Build established: Scavenger-Mutant 1310 | -10/Mines | Found a damaged Exp. Sensor Array with a note attached 1313 | -10/Mines | Found Prototype Device 1489 | -10/Mines | Discovered new exit (range 7) 1498 | -10/Mines | Deemed a non-threat by the Exiles lab entrance 1540 | -10/Mines | Entered Exiles 1570 | -10/Exiles | Met 8R-AWN 1590 | -10/Exiles | Met EX-HEX 1640 | -10/Exiles | Met EX-BIN 1662 | -10/Exiles | Aligned with FarCom system 1663 | -10/Exiles | Given EX-Vault access code 1690 | -10/Exiles | Opened EX-Vault 1697 | -10/Exiles | Found Prototype Device 1698 | -10/Exiles | Identified Supersonic Drone Bay 1705 | -10/Exiles | Found Prototype Device 1705 | -10/Exiles | Identified Trap Reconfigurator 1734 | -10/Exiles | Warned to stay clear of 0b10 Research branches 1770 | -10/Exiles | Met EX-DEC 1811 | -10/Exiles | Visited The Gauntlet 1927 | -10/Exiles | Attacked by the Exiles 1948 | -10/Exiles | Core integrity fell below 50% 1952 | -10/Exiles | Identified Exp. Sensor Array 1959 | -10/Exiles | Destroyed by DAS Turret with DAS Cannon Last Messages --------------- Whatever! 01926_ Testing Apparatus damaged. 01927_ EXILES: Hostile robot within lab perimeter. Defensive protocols time, folks! 01949_ Mining Laser destroyed. 01951_ EX-BIN: "I just want to science!" 01951_ Lgt. Nuclear Core destroyed. 01952_ Identified Exp. Sensor Array. 01953_ DK-RAY destroyed. 01957_ Aluminum Leg destroyed. 01957_ Dropped Aluminum Leg. 01957_ Exp. Sensor Array destroyed. 01957_ System corrupted by crushing effect (+2). 01957_ Knocked back. 01957_ as-31920 system corrupted by crushing effect. 01957_ Sml. Laser destroyed. 01957_ Dropped Trap Reconfigurator. 01958_ Dropped Sml. Laser. 01959_ Dropped Sml. Storage Unit. Map ----- +----------------------------------------------------+ | ????????????#""" """""" | | ???????????##" ######""" | | ???????????#"" ""##????#####""" | | ??????????##""" """##?????????##""" | | ??????????#""" """##???????????#"""" | | ??????????#""" ""#????????????#"" | | ??????????#"" ###??#????????"""" | | ??????????#""" ## #????"" | | ??????????#"" ???" | | ??????????##"" ???? | | ???????????#"""" ???? | | ???????????## ???? | | ????????????#" "????? "" | | ????????????#"""" ""???????"" " " " | | ????????????#"" ""#?????????##""" "" | | ????????????#" a """"#???????????###"""? | | ????????????#""" """#?????????????##??? | | ????????????## ""#??????????????????? | | ?????????????#"" """##??????????????????? | | ?????????????##""" aaa ##???????????????????? | | ??????????????##"""" ##????????????????????? | | ???????????????### #?????????????????????? | | ?????????????????##### ##?????????????????????? | | ?????????????????????## #??????????????????????? | | ??????????????????????#% #??????????????????????? | | ??????????????????????#!a@#??????????????????????? | | ??????????????????????#[*!#??????????????????????? | | ????????????####??????#a= #??????????????????????? | | ???"""""???#""""""????#za #??????????????????????? | | ?"""""""???#"""""""???# c #??????????????????????? | | """""" "#??#" """"#??# zz#??????????????????????? | | #""" """???#"" """???#z #??????????????????????? | | #"" ""????"" ""???# #??????????????????????? | | ###"""########"""###### ########???????????????? | | """ """""""" """""" c"""""""#???????????????? | | "" """"""" "#"" "???????????? | | " "???????????? | | " "????????????? | | " "????????????? | | "" #"" "???????????? | | " " "" "" " """" """""#???????????????? | | ###"""###""###"""########"""######???????????????? | | ?"" ""#""#"" ""?????? ""???????????????????? | | #""" ""#""#""" ""#????? """#??????????????????? | | #" """"""""#" " "#?????"""""#??????????????????? | | #"""""""#""#"""""""#????? """"???????????????????? | | #"""""""#???"""""""#?????""""????????????????????? | | ?###"##??????######???????#??????????????????????? | | ?????????????????????????????????????????????????? | | ?????????????????????????????????????????????????? | +----------------------------------------------------+ Best States ------------- Heat Dissipation 25 Energy Generation 14 Energy Capacity 160 Matter Stores 300 Matter Capacity 300 Sight Range 16 Terrain Scan Range 16 Terrain Scan Density 10 Evasion (%) 55 Item Schematics ----------------- None Robot Schematics ------------------ None Fabricated ------------ Nothing Repaired ---------- Nothing Studied --------- None Alien Tech Used ----------------- None Achievements -------------- Sixth Sense There's More Where That Came From Challenges ------------ None Game ------ Seed LinearPulsePendant Manual? 0 Play Time 00:19:02 Cumulative 48.0 hours Start 2025.10.25 @ 09:24:27 End 2025.10.25 @ 11:51:48 Sessions 3 Manual Loads 0 Difficulty Rogue Special Mode None Game No. 61 Rogue 61 Adventurer 0 Explorer 0 Win Type - Total 0 Types 0/0/0/0/0/0/0/0/0/0 Lore% 24 Gallery% 41 Achievement% 23 Wizard Run 0 Options --------- Layout 1 ASCII 0 Keyboard 0 Movement Numpad Keybinds 0 Fullscreen 1 Font 32/SmallcapsGlow Map View 50x35 Zoom Use 0% Tactical HUD 1 Map Filters NONE Filters NONE Steam 1 RUN: e2d4ce3d-24b2-4a6e-96f4-ec53a5687d85